[Event "Late-Titled-Tuesday-Blitz-September-26-2023"]
[Site "Chess.com"]
[Date "2023.09.26"]
[Round "5"]
[White "Thjop"]
[Black "EsmeraldasAnderson03"]
[Result "1-0"]
[WhiteElo "2607"]
[BlackElo "2428"]
[TimeControl "180+1"]
[EndTime "14:55:11 PDT"]
[Termination "Thjop won on time"]

1. e4 {[%clk 0:03:00.9]} 1... c5 {[%clk 0:02:44.3]} 2. Nf3 {[%clk 0:03:00.4]}
2... d6 {[%clk 0:02:44.5]} 3. g3 {[%clk 0:03:00.4]} 3... Nf6 {[%clk 0:02:43.9]}
4. d3 {[%clk 0:03:00.5]} 4... g6 {[%clk 0:02:43.5]} 5. Bg2 {[%clk 0:03:01]} 5...
Bg7 {[%clk 0:02:44.1]} 6. O-O {[%clk 0:03:01.8]} 6... O-O {[%clk 0:02:44.6]} 7.
h3 {[%clk 0:03:02.7]} 7... Nc6 {[%clk 0:02:44.7]} 8. Nc3 {[%clk 0:03:03.2]} 8...
a6 {[%clk 0:02:44]} 9. a4 {[%clk 0:03:04.1]} 9... Nb4 {[%clk 0:02:43.9]} 10. Be3
{[%clk 0:03:03.2]} 10... e5 {[%clk 0:02:42.4]} 11. Nd2 {[%clk 0:03:00]} 11...
Nh5 {[%clk 0:02:30.8]} 12. Nc4 {[%clk 0:02:56.3]} 12... Be6 {[%clk 0:02:23.4]}
13. Nd5 {[%clk 0:02:55.6]} 13... b5 {[%clk 0:02:00]} 14. axb5 {[%clk 0:02:46.2]}
14... axb5 {[%clk 0:01:59.4]} 15. Rxa8 {[%clk 0:02:45.7]} 15... Qxa8 {[%clk
0:02:00.3]} 16. Nxd6 {[%clk 0:02:19.5]} 16... Nxd5 {[%clk 0:01:58.5]} 17. exd5
{[%clk 0:02:19.6]} 17... Bxd5 {[%clk 0:01:59.4]} 18. Bxd5 {[%clk 0:02:19.1]}
18... Qxd5 {[%clk 0:02:00.3]} 19. Nxb5 {[%clk 0:02:19.5]} 19... f5 {[%clk
0:01:48.6]} 20. Nc3 {[%clk 0:02:13.2]} 20... Qc6 {[%clk 0:01:41.8]} 21. Kh2
{[%clk 0:02:02.3]} 21... f4 {[%clk 0:01:10.8]} 22. Bd2 {[%clk 0:01:59.7]} 22...
Qb7 {[%clk 0:00:30.2]} 23. b3 {[%clk 0:01:42.4]} 23... Qf7 {[%clk 0:00:30.4]}
24. g4 {[%clk 0:01:40.3]} 24... Nf6 {[%clk 0:00:31]} 25. Qf3 {[%clk 0:01:34]}
25... Qa7 {[%clk 0:00:13.9]} 26. Re1 {[%clk 0:01:32.1]} 26... h5 {[%clk
0:00:08.7]} 27. g5 {[%clk 0:01:30.5]} 27... Ne8 {[%clk 0:00:05.8]} 28. h4 {[%clk
0:01:27.4]} 28... Rf7 {[%clk 0:00:06.3]} 29. Kg2 {[%clk 0:01:26.3]} 29... Nd6
{[%clk 0:00:06.6]} 30. Qd5 {[%clk 0:01:20.7]} 30... Nf5 {[%clk 0:00:07.1]} 31.
Kh3 {[%clk 0:01:20]} 31... Kh7 {[%clk 0:00:06.7]} 32. Ne4 {[%clk 0:01:17.1]}
32... Qc7 {[%clk 0:00:03]} 33. Rh1 {[%clk 0:01:07.3]} 33... Qc8 {[%clk 0:00:03]}
34. Kg2 {[%clk 0:01:07]} 34... Nd4 {[%clk 0:00:02.9]} 35. f3 {[%clk 0:01:00.4]}
35... Nxf3 {[%clk 0:00:03]} 36. Kxf3 {[%clk 0:00:59]} 36... Qg4+ {[%clk
0:00:03.9]} 37. Kf2 {[%clk 0:00:59.3]} 37... f3 {[%clk 0:00:04.6]} 38. Rh2
{[%clk 0:00:52.6]} 38... Ra7 {[%clk 0:00:02.3]} 39. Nf6+ {[%clk 0:00:46.7]}
39... Bxf6 {[%clk 0:00:02.1]} 40. gxf6 {[%clk 0:00:44.5]} 40... Qf5 {[%clk
0:00:02.6]} 41. Qxf3 {[%clk 0:00:43.1]} 41... Qe6 {[%clk 0:00:02.3]} 42. Rg2
{[%clk 0:00:40.6]} 42... Rf7 {[%clk 0:00:02.5]} 43. Bg5 {[%clk 0:00:40.8]} 43...
Qd6 {[%clk 0:00:01.6]} 44. Qe4 {[%clk 0:00:40.8]} 44... Qe6 {[%clk 0:00:01.8]}
45. Kg3 {[%clk 0:00:40.2]} 45... Rf8 {[%clk 0:00:01.2]} 46. Kh2 {[%clk
0:00:39.7]} 46... Qf7 {[%clk 0:00:01.7]} 47. Qxe5 {[%clk 0:00:39]} 47... Re8
{[%clk 0:00:02.1]} 48. Qxc5 {[%clk 0:00:38.4]} 48... Re1 {[%clk 0:00:02.6]} 49.
Rf2 {[%clk 0:00:33.3]} 49... Qd7 {[%clk 0:00:02.7]} 50. f7 {[%clk 0:00:29.9]}
50... Qg4 {[%clk 0:00:01.6]} 51. Rg2 {[%clk 0:00:20.6]} 1-0

[Event "Late-Titled-Tuesday-Blitz-September-26-2023"]
[Site "Chess.com"]
[Date "2023.09.26"]
[Round "5"]
[White "Goryachkina"]
[Black "Slovak_fighter2000"]
[Result "1-0"]
[WhiteElo "2661"]
[BlackElo "2458"]
[TimeControl "180+1"]
[EndTime "14:55:12 PDT"]
[Termination "Goryachkina won by resignation"]

1. e4 {[%clk 0:03:00]} 1... e6 {[%clk 0:02:59.6]} 2. d4 {[%clk 0:02:59.4]} 2...
d5 {[%clk 0:02:59.9]} 3. Nc3 {[%clk 0:02:59.6]} 3... Nf6 {[%clk 0:02:58]} 4. Bg5
{[%clk 0:02:59]} 4... Be7 {[%clk 0:02:57.8]} 5. e5 {[%clk 0:02:57.2]} 5... Nfd7
{[%clk 0:02:58]} 6. h4 {[%clk 0:02:57.2]} 6... h6 {[%clk 0:02:57.8]} 7. Bxe7
{[%clk 0:02:55.7]} 7... Qxe7 {[%clk 0:02:58.7]} 8. Qg4 {[%clk 0:02:47.2]} 8...
O-O {[%clk 0:02:59.1]} 9. f4 {[%clk 0:02:46.1]} 9... c5 {[%clk 0:02:55.4]} 10.
Nf3 {[%clk 0:02:43.7]} 10... Nc6 {[%clk 0:02:55.3]} 11. O-O-O {[%clk 0:02:40.3]}
11... cxd4 {[%clk 0:02:47.3]} 12. Nxd4 {[%clk 0:02:36.6]} 12... Nxd4 {[%clk
0:02:41.5]} 13. Rxd4 {[%clk 0:02:36.4]} 13... f6 {[%clk 0:02:38.6]} 14. exf6
{[%clk 0:02:28.2]} 14... Qxf6 {[%clk 0:02:39.1]} 15. Qd1 {[%clk 0:02:25.3]}
15... Nb8 {[%clk 0:02:38.1]} 16. g3 {[%clk 0:02:07.1]} 16... Nc6 {[%clk
0:02:35.9]} 17. Rd2 {[%clk 0:02:06.9]} 17... d4 {[%clk 0:02:35.9]} 18. Ne4
{[%clk 0:02:04.7]} 18... Qe7 {[%clk 0:02:30.2]} 19. Bc4 {[%clk 0:01:51.9]} 19...
Qb4 {[%clk 0:01:57.5]} 20. Bb3 {[%clk 0:01:46.3]} 20... a5 {[%clk 0:01:56.7]}
21. a3 {[%clk 0:01:44.7]} 21... Qb6 {[%clk 0:01:56.3]} 22. Re1 {[%clk
0:01:30.8]} 22... Kh8 {[%clk 0:01:49.1]} 23. Kb1 {[%clk 0:01:18.9]} 23... a4
{[%clk 0:01:43.9]} 24. Ba2 {[%clk 0:01:18.8]} 24... e5 {[%clk 0:01:28.4]} 25.
Nd6 {[%clk 0:01:08.9]} 25... Bf5 {[%clk 0:01:19.7]} 26. fxe5 {[%clk 0:01:00.2]}
26... Bg6 {[%clk 0:00:56.5]} 27. h5 {[%clk 0:00:58.7]} 27... Bf5 {[%clk
0:00:46.8]} 28. g4 {[%clk 0:00:54.3]} 28... Bh7 {[%clk 0:00:36.9]} 29. Nf7+
{[%clk 0:00:52.7]} 29... Rxf7 {[%clk 0:00:37]} 30. Bxf7 {[%clk 0:00:53]} 30...
Rc8 {[%clk 0:00:30.1]} 31. Be6 {[%clk 0:00:42.2]} 31... Rd8 {[%clk 0:00:24.6]}
32. Bf5 {[%clk 0:00:35.9]} 32... Bg8 {[%clk 0:00:24.2]} 33. e6 {[%clk
0:00:34.6]} 33... Ne7 {[%clk 0:00:22.4]} 34. Rd3 {[%clk 0:00:28.8]} 34... Rd6
{[%clk 0:00:22.1]} 35. Qe2 {[%clk 0:00:28.2]} 35... Rc6 {[%clk 0:00:18.5]} 36.
Qe5 {[%clk 0:00:26.6]} 36... Rd6 {[%clk 0:00:16.3]} 37. Red1 {[%clk 0:00:23.2]}
37... Rd5 {[%clk 0:00:11.3]} 38. Qe4 {[%clk 0:00:20.6]} 38... Rb5 {[%clk
0:00:10.9]} 39. Qxd4 {[%clk 0:00:20.6]} 39... Qc6 {[%clk 0:00:09.3]} 40. Qd6
{[%clk 0:00:14.8]} 40... Qxd6 {[%clk 0:00:05.1]} 41. Rxd6 {[%clk 0:00:14.8]}
41... Nxf5 {[%clk 0:00:05.5]} 42. gxf5 {[%clk 0:00:15.1]} 42... Rxf5 {[%clk
0:00:06.2]} 43. Re1 {[%clk 0:00:15.1]} 43... Rf8 {[%clk 0:00:05.3]} 44. e7
{[%clk 0:00:15.3]} 44... Re8 {[%clk 0:00:05.8]} 45. Rd8 {[%clk 0:00:15.4]} 45...
Bf7 {[%clk 0:00:06.1]} 46. Rf1 {[%clk 0:00:13.5]} 46... Bxh5 {[%clk 0:00:05.7]}
47. Rxe8+ {[%clk 0:00:12.3]} 1-0

[Event "Late-Titled-Tuesday-Blitz-September-26-2023"]
[Site "Chess.com"]
[Date "2023.09.26"]
[Round "5"]
[White "Firouzja2003"]
[Black "GaiozNigalidze"]
[Result "1-0"]
[WhiteElo "3087"]
[BlackElo "2727"]
[TimeControl "180+1"]
[EndTime "14:55:17 PDT"]
[Termination "Firouzja2003 won by resignation"]

1. e4 {[%clk 0:03:00]} 1... c5 {[%clk 0:03:00]} 2. Nf3 {[%clk 0:02:58.2]} 2...
Nc6 {[%clk 0:02:59.2]} 3. d4 {[%clk 0:02:43.9]} 3... cxd4 {[%clk 0:02:58.5]} 4.
Nxd4 {[%clk 0:02:44.8]} 4... Nf6 {[%clk 0:02:58.9]} 5. Nc3 {[%clk 0:02:44.8]}
5... e5 {[%clk 0:02:58.9]} 6. Ndb5 {[%clk 0:02:44.3]} 6... d6 {[%clk 0:02:59.1]}
7. Nd5 {[%clk 0:02:42.1]} 7... Nxd5 {[%clk 0:02:59.5]} 8. exd5 {[%clk 0:02:43]}
8... Nb8 {[%clk 0:03:00.1]} 9. a4 {[%clk 0:02:41.9]} 9... a6 {[%clk 0:02:56.8]}
10. Na3 {[%clk 0:02:41.6]} 10... a5 {[%clk 0:02:27.2]} 11. Bb5+ {[%clk
0:02:26.9]} 11... Nd7 {[%clk 0:02:17.9]} 12. Qg4 {[%clk 0:02:06.1]} 12... h5
{[%clk 0:02:00.9]} 13. Qh3 {[%clk 0:02:00.4]} 13... Be7 {[%clk 0:01:45.1]} 14.
Nc4 {[%clk 0:01:58.9]} 14... g6 {[%clk 0:01:14.9]} 15. f4 {[%clk 0:01:36]} 15...
O-O {[%clk 0:01:07.9]} 16. f5 {[%clk 0:01:18.1]} 16... Nf6 {[%clk 0:00:48.2]}
17. O-O {[%clk 0:01:17.9]} 17... Nxd5 {[%clk 0:00:34.4]} 18. Qg3 {[%clk
0:00:53.8]} 18... Bh4 {[%clk 0:00:27.9]} 19. Qf3 {[%clk 0:00:53.3]} 19... Nb4
{[%clk 0:00:15.3]} 20. Bh6 {[%clk 0:00:47.7]} 20... Bxf5 {[%clk 0:00:12.5]} 21.
Ne3 {[%clk 0:00:44.1]} 21... Be6 {[%clk 0:00:11.4]} 22. Bxf8 {[%clk 0:00:39.7]}
22... Qxf8 {[%clk 0:00:12.3]} 23. Bc4 {[%clk 0:00:37.9]} 23... Qe7 {[%clk
0:00:08]} 24. Bxe6 {[%clk 0:00:33.1]} 24... Qxe6 {[%clk 0:00:08.9]} 25. Qxb7
{[%clk 0:00:28.7]} 25... Rf8 {[%clk 0:00:09.5]} 26. c3 {[%clk 0:00:27.9]} 26...
Bg5 {[%clk 0:00:08.8]} 27. Nf5 {[%clk 0:00:17.1]} 27... Nc2 {[%clk 0:00:05.4]}
28. Rac1 {[%clk 0:00:03.7]} 28... Bxc1 {[%clk 0:00:03.5]} 29. Ne7+ {[%clk
0:00:04.4]} 29... Kg7 {[%clk 0:00:03.5]} 30. Rxc1 {[%clk 0:00:04.6]} 30... Ne3
{[%clk 0:00:02.9]} 31. Qa7 {[%clk 0:00:03.9]} 31... Ng4 {[%clk 0:00:01.5]} 32.
h3 {[%clk 0:00:03.2]} 32... Nf6 {[%clk 0:00:01.1]} 33. Nc6 {[%clk 0:00:03.3]}
33... Re8 {[%clk 0:00:01.4]} 34. Qxa5 {[%clk 0:00:02.4]} 34... d5 {[%clk
0:00:01.9]} 35. Qb5 {[%clk 0:00:02.1]} 35... e4 {[%clk 0:00:02.1]} 36. Nd4
{[%clk 0:00:02.5]} 36... Qe5 {[%clk 0:00:02.7]} 37. Rf1 {[%clk 0:00:03.4]} 37...
e3 {[%clk 0:00:03.4]} 38. Qe2 {[%clk 0:00:03.6]} 38... h4 {[%clk 0:00:04.1]} 39.
Rf3 {[%clk 0:00:03.7]} 39... Re7 {[%clk 0:00:04.3]} 40. Nc6 {[%clk 0:00:03.7]}
40... Qe4 {[%clk 0:00:04.5]} 41. Nxe7 {[%clk 0:00:04.4]} 41... Qxe7 {[%clk
0:00:04.8]} 42. Qxe3 {[%clk 0:00:04.9]} 42... Qb7 {[%clk 0:00:05.2]} 43. Qd4
{[%clk 0:00:05.5]} 1-0

[Event "Late-Titled-Tuesday-Blitz-September-26-2023"]
[Site "Chess.com"]
[Date "2023.09.26"]
[Round "5"]
[White "ferrufino64"]
[Black "Bilan_Danila"]
[Result "0-1"]
[WhiteElo "2206"]
[BlackElo "2515"]
[TimeControl "180+1"]
[EndTime "14:55:20 PDT"]
[Termination "Bilan_Danila won on time"]

1. e4 {[%clk 0:02:52.4]} 1... c6 {[%clk 0:02:59.7]} 2. d4 {[%clk 0:02:35.7]}
2... d5 {[%clk 0:03:00.6]} 3. Nc3 {[%clk 0:02:34.8]} 3... b5 {[%clk 0:02:58.5]}
4. exd5 {[%clk 0:02:29.4]} 4... b4 {[%clk 0:02:57.7]} 5. Nce2 {[%clk 0:02:29.6]}
5... cxd5 {[%clk 0:02:57.7]} 6. Ng3 {[%clk 0:02:29.1]} 6... Nf6 {[%clk
0:02:58.2]} 7. Nf3 {[%clk 0:02:29.2]} 7... e6 {[%clk 0:02:54.6]} 8. Ne5 {[%clk
0:02:21.4]} 8... Bd6 {[%clk 0:02:41.7]} 9. Bb5+ {[%clk 0:02:19.2]} 9... Bd7
{[%clk 0:02:40]} 10. Nxd7 {[%clk 0:02:16.5]} 10... Nbxd7 {[%clk 0:02:40.9]} 11.
O-O {[%clk 0:02:14.4]} 11... O-O {[%clk 0:02:36.3]} 12. Bg5 {[%clk 0:02:03.5]}
12... Qc7 {[%clk 0:02:35.9]} 13. Bd3 {[%clk 0:01:52.4]} 13... Bf4 {[%clk
0:02:17.9]} 14. Bxf6 {[%clk 0:01:19.5]} 14... Nxf6 {[%clk 0:02:15.3]} 15. Qf3
{[%clk 0:01:07.4]} 15... a5 {[%clk 0:01:48.8]} 16. h3 {[%clk 0:00:45.6]} 16...
Bxg3 {[%clk 0:01:30.3]} 17. fxg3 {[%clk 0:00:43]} 17... h6 {[%clk 0:01:18.6]}
18. g4 {[%clk 0:00:40.2]} 18... Qe7 {[%clk 0:01:09.1]} 19. Rae1 {[%clk 0:00:38]}
19... Rfd8 {[%clk 0:01:06.7]} 20. h4 {[%clk 0:00:33.3]} 20... Nh7 {[%clk
0:01:06.5]} 21. g3 {[%clk 0:00:32.8]} 21... Nf8 {[%clk 0:01:04]} 22. Kg2 {[%clk
0:00:24.8]} 22... Ra7 {[%clk 0:00:59.6]} 23. Rf2 {[%clk 0:00:20.9]} 23... Rc7
{[%clk 0:00:55.2]} 24. Re5 {[%clk 0:00:19.3]} 24... Nd7 {[%clk 0:00:50.9]} 25.
Re1 {[%clk 0:00:18.4]} 25... Nb6 {[%clk 0:00:39.3]} 26. b3 {[%clk 0:00:17]}
26... Nc8 {[%clk 0:00:26.6]} 27. Re5 {[%clk 0:00:15.9]} 27... Na7 {[%clk
0:00:23.7]} 28. g5 {[%clk 0:00:16.3]} 28... hxg5 {[%clk 0:00:22.8]} 29. Rxg5
{[%clk 0:00:16]} 29... Nc6 {[%clk 0:00:18.1]} 30. Qg4 {[%clk 0:00:15]} 30... f5
{[%clk 0:00:17.3]} 31. Qf4 {[%clk 0:00:14]} 31... Rcd7 {[%clk 0:00:15.3]} 32. h5
{[%clk 0:00:14]} 32... Qf6 {[%clk 0:00:14.6]} 33. Rg6 {[%clk 0:00:11]} 33...
Qxd4 {[%clk 0:00:15.1]} 34. Qg5 {[%clk 0:00:10.3]} 34... Ne7 {[%clk 0:00:08.8]}
35. Rxe6 {[%clk 0:00:09.6]} 35... Nc8 {[%clk 0:00:02.4]} 36. h6 {[%clk
0:00:09.5]} 36... Rf8 {[%clk 0:00:01.5]} 37. Rf4 {[%clk 0:00:07.8]} 37... Qc3
{[%clk 0:00:01.4]} 38. Rg6 {[%clk 0:00:07.7]} 38... Qd2+ {[%clk 0:00:01.9]} 39.
Kh3 {[%clk 0:00:07.7]} 39... Qc3 {[%clk 0:00:02.4]} 40. Rh4 {[%clk 0:00:07.8]}
40... Ne7 {[%clk 0:00:01.8]} 41. Rxg7+ {[%clk 0:00:05.1]} 41... Kh8 {[%clk
0:00:02.4]} 0-1

[Event "Late-Titled-Tuesday-Blitz-September-26-2023"]
[Site "Chess.com"]
[Date "2023.09.26"]
[Round "5"]
[White "ozates"]
[Black "ferdipy"]
[Result "0-1"]
[WhiteElo "2525"]
[BlackElo "2345"]
[TimeControl "180+1"]
[EndTime "14:55:27 PDT"]
[Termination "ferdipy won by resignation"]

1. e4 {[%clk 0:02:59.7]} 1... e6 {[%clk 0:02:59.2]} 2. d4 {[%clk 0:02:58.9]}
2... d5 {[%clk 0:02:59.6]} 3. Nd2 {[%clk 0:02:59.8]} 3... Nf6 {[%clk 0:02:59.3]}
4. e5 {[%clk 0:02:59.6]} 4... Nfd7 {[%clk 0:03:00]} 5. f4 {[%clk 0:03:00.5]}
5... c5 {[%clk 0:03:00.7]} 6. c3 {[%clk 0:03:01.4]} 6... Nc6 {[%clk 0:03:00.5]}
7. Ndf3 {[%clk 0:03:01.2]} 7... cxd4 {[%clk 0:03:01.4]} 8. cxd4 {[%clk
0:03:01.4]} 8... Qa5+ {[%clk 0:03:01.2]} 9. Kf2 {[%clk 0:02:59.5]} 9... Be7
{[%clk 0:02:58]} 10. Bd3 {[%clk 0:02:58.4]} 10... Qb6 {[%clk 0:02:58.2]} 11. Ne2
{[%clk 0:02:56.5]} 11... f6 {[%clk 0:02:58.8]} 12. Be3 {[%clk 0:02:50.8]} 12...
O-O {[%clk 0:02:54]} 13. g3 {[%clk 0:02:34.9]} 13... fxe5 {[%clk 0:02:21.7]} 14.
dxe5 {[%clk 0:02:34.7]} 14... Bc5 {[%clk 0:02:17.8]} 15. Bxc5 {[%clk 0:02:32.8]}
15... Nxc5 {[%clk 0:02:17.9]} 16. Kg2 {[%clk 0:02:32.6]} 16... Bd7 {[%clk
0:02:08.1]} 17. Ng5 {[%clk 0:02:20.4]} 17... h6 {[%clk 0:02:05.2]} 18. Nf3
{[%clk 0:02:12.3]} 18... Qxb2 {[%clk 0:01:14.1]} 19. Kh3 {[%clk 0:02:02.9]}
19... Qa3 {[%clk 0:01:08.9]} 20. Ne1 {[%clk 0:01:43.6]} 20... Nb4 {[%clk
0:01:08]} 21. Bb1 {[%clk 0:01:40.2]} 21... Qb2 {[%clk 0:01:05.9]} 22. Nc2 {[%clk
0:01:40]} 22... Nxc2 {[%clk 0:01:05.2]} 23. Bxc2 {[%clk 0:01:40.9]} 23... Rac8
{[%clk 0:01:01.3]} 24. Bg6 {[%clk 0:01:28.8]} 24... Ba4 {[%clk 0:00:56.4]} 25.
Qe1 {[%clk 0:01:25.7]} 25... Bc2 {[%clk 0:00:54.4]} 26. Bxc2 {[%clk 0:01:21.8]}
26... Qxc2 {[%clk 0:00:54.7]} 27. Nd4 {[%clk 0:01:22.7]} 27... Qb2 {[%clk
0:00:51.8]} 28. Qe3 {[%clk 0:01:15.5]} 28... Ne4 {[%clk 0:00:35.1]} 29. Rhb1
{[%clk 0:01:09.4]} 29... Qc3 {[%clk 0:00:26.4]} 30. Qxc3 {[%clk 0:01:09.2]}
30... Rxc3 {[%clk 0:00:25.1]} 31. Rxb7 {[%clk 0:01:09.9]} 31... Rxf4 {[%clk
0:00:24.9]} 32. Nxe6 {[%clk 0:00:39]} 32... Rf7 {[%clk 0:00:24.7]} 33. Rb8+
{[%clk 0:00:38.7]} 33... Kh7 {[%clk 0:00:24.7]} 34. Nf8+ {[%clk 0:00:39.2]}
34... Kg8 {[%clk 0:00:24.2]} 35. Ng6+ {[%clk 0:00:34.5]} 35... Kh7 {[%clk
0:00:24.3]} 36. Nf4 {[%clk 0:00:25.2]} 36... Rxf4 {[%clk 0:00:21.8]} 37. e6
{[%clk 0:00:13]} 37... Ng5+ {[%clk 0:00:17.9]} 38. Kg2 {[%clk 0:00:13.4]} 38...
Re4 {[%clk 0:00:18.5]} 39. Rf1 {[%clk 0:00:11.3]} 39... Rxe6 {[%clk 0:00:17]}
40. h4 {[%clk 0:00:11.6]} 40... Re2+ {[%clk 0:00:16.9]} 41. Rf2 {[%clk
0:00:12.1]} 41... Rxf2+ {[%clk 0:00:16.5]} 42. Kxf2 {[%clk 0:00:13]} 42... Ne4+
{[%clk 0:00:17.1]} 43. Ke2 {[%clk 0:00:13.9]} 43... Nxg3+ {[%clk 0:00:16.5]} 44.
Kd2 {[%clk 0:00:14.8]} 44... Ne4+ {[%clk 0:00:17.2]} 45. Ke2 {[%clk 0:00:15.5]}
45... Rh3 {[%clk 0:00:16.9]} 46. Ra8 {[%clk 0:00:15]} 46... Rh2+ {[%clk
0:00:16.8]} 47. Ke3 {[%clk 0:00:15.1]} 47... Rxa2 {[%clk 0:00:17.5]} 48. Kf4
{[%clk 0:00:16]} 48... Nf6 {[%clk 0:00:16.8]} 49. Kf5 {[%clk 0:00:16.2]} 49...
Ra4 {[%clk 0:00:17.2]} 50. Ke6 {[%clk 0:00:16.9]} 50... Rxh4 {[%clk 0:00:17.5]}
51. Kf7 {[%clk 0:00:17.8]} 51... Rf4 {[%clk 0:00:17]} 52. Rxa7 {[%clk
0:00:17.5]} 52... d4 {[%clk 0:00:16.1]} 53. Ra8 {[%clk 0:00:16.4]} 53... d3
{[%clk 0:00:15.2]} 54. Rd8 {[%clk 0:00:17.1]} 54... d2 {[%clk 0:00:15.1]} 55.
Ke6 {[%clk 0:00:17.8]} 55... Re4+ {[%clk 0:00:13.6]} 56. Kf5 {[%clk 0:00:18.5]}
56... Re2 {[%clk 0:00:13.2]} 57. Rd3 {[%clk 0:00:17.4]} 57... Rf2+ {[%clk
0:00:12.6]} 58. Ke6 {[%clk 0:00:17.1]} 58... Ne4 {[%clk 0:00:12.7]} 59. Rd8
{[%clk 0:00:15.4]} 59... Rf1 {[%clk 0:00:12.9]} 0-1

[Event "Late-Titled-Tuesday-Blitz-September-26-2023"]
[Site "Chess.com"]
[Date "2023.09.26"]
[Round "5"]
[White "ritanovikova"]
[Black "azikom"]
[Result "1-0"]
[WhiteElo "2175"]
[BlackElo "2611"]
[TimeControl "180+1"]
[EndTime "14:55:33 PDT"]
[Termination "ritanovikova won on time"]

1. d4 {[%clk 0:03:00]} 1... c5 {[%clk 0:02:58.9]} 2. c3 {[%clk 0:02:54.6]} 2...
e6 {[%clk 0:02:57.7]} 3. e4 {[%clk 0:02:54.3]} 3... d5 {[%clk 0:02:56.9]} 4.
exd5 {[%clk 0:02:54.6]} 4... Qxd5 {[%clk 0:02:56.8]} 5. Nf3 {[%clk 0:02:52.3]}
5... Nf6 {[%clk 0:02:56.3]} 6. Be2 {[%clk 0:02:51.4]} 6... Nc6 {[%clk 0:02:55]}
7. O-O {[%clk 0:02:51.1]} 7... cxd4 {[%clk 0:02:53.6]} 8. Nxd4 {[%clk
0:02:45.5]} 8... Nxd4 {[%clk 0:02:52.7]} 9. cxd4 {[%clk 0:02:46.3]} 9... Be7
{[%clk 0:02:52.6]} 10. Nc3 {[%clk 0:02:46.9]} 10... Qa5 {[%clk 0:02:51.7]} 11.
Bb5+ {[%clk 0:02:45.6]} 11... Bd7 {[%clk 0:02:48.6]} 12. Bxd7+ {[%clk
0:02:42.4]} 12... Nxd7 {[%clk 0:02:48.1]} 13. d5 {[%clk 0:02:40.9]} 13... Nc5
{[%clk 0:02:42.8]} 14. dxe6 {[%clk 0:02:39.9]} 14... Nxe6 {[%clk 0:02:41.9]} 15.
Qf3 {[%clk 0:02:33.4]} 15... Qa6 {[%clk 0:02:33]} 16. Nd5 {[%clk 0:02:29.6]}
16... Bd6 {[%clk 0:02:32]} 17. Bd2 {[%clk 0:02:11.2]} 17... O-O {[%clk
0:02:27.2]} 18. Bc3 {[%clk 0:02:09.7]} 18... Rfd8 {[%clk 0:02:18.7]} 19. Qg4
{[%clk 0:02:05.7]} 19... Bf8 {[%clk 0:02:08.9]} 20. Nf6+ {[%clk 0:02:00.9]}
20... Kh8 {[%clk 0:02:08.2]} 21. Nh5 {[%clk 0:01:55.4]} 21... Qd3 {[%clk
0:01:32.3]} 22. Rad1 {[%clk 0:01:48.1]} 22... Qg6 {[%clk 0:01:31.4]} 23. Qf3
{[%clk 0:01:45.5]} 23... Ng5 {[%clk 0:01:21.5]} 24. Qg4 {[%clk 0:01:31.9]} 24...
Ne4 {[%clk 0:01:19]} 25. Qh4 {[%clk 0:01:10.4]} 25... Rxd1 {[%clk 0:01:16.7]}
26. Rxd1 {[%clk 0:01:10]} 26... Nxc3 {[%clk 0:01:15.8]} 27. bxc3 {[%clk
0:01:07.3]} 27... Re8 {[%clk 0:01:05.3]} 28. g3 {[%clk 0:01:04]} 28... Qf5
{[%clk 0:00:56.6]} 29. Rd8 {[%clk 0:00:49.5]} 29... Rxd8 {[%clk 0:00:54.9]} 30.
Qxd8 {[%clk 0:00:48.6]} 30... Kg8 {[%clk 0:00:54]} 31. Nf4 {[%clk 0:00:46.3]}
31... Qb1+ {[%clk 0:00:53.2]} 32. Kg2 {[%clk 0:00:46.1]} 32... Qxa2 {[%clk
0:00:42.9]} 33. Nd5 {[%clk 0:00:45.5]} 33... Qa3 {[%clk 0:00:34.5]} 34. c4
{[%clk 0:00:39]} 34... Qd6 {[%clk 0:00:21]} 35. Qa8 {[%clk 0:00:35.9]} 35... Qc6
{[%clk 0:00:14.1]} 36. Qxa7 {[%clk 0:00:24.7]} 36... h6 {[%clk 0:00:09.1]} 37.
Qa5 {[%clk 0:00:17.3]} 37... Qc5 {[%clk 0:00:07.7]} 38. Qa4 {[%clk 0:00:11.3]}
38... h5 {[%clk 0:00:06.7]} 39. h4 {[%clk 0:00:10.6]} 39... Qd4 {[%clk 0:00:05]}
40. Ne3 {[%clk 0:00:10]} 40... Qe4+ {[%clk 0:00:03.6]} 41. Kg1 {[%clk
0:00:09.9]} 41... g6 {[%clk 0:00:03.4]} 42. Qb5 {[%clk 0:00:07.2]} 42... Qc6
{[%clk 0:00:02.1]} 43. Qb3 {[%clk 0:00:05.6]} 43... Bg7 {[%clk 0:00:01.2]} 44.
Qd3 {[%clk 0:00:05.4]} 1-0